Cogmind - Beta 16 @@@ ROGUE MODE // 2025.11.27 @ 19:49:50 Player: tthaar Result: Destroyed by Autobeam Turret with Autobeam Performance ------------- Evolutions (0) 0 Regions Visited (3) 600 Robots Destroyed (29) 145 Value Destroyed (614) 614 Prototype IDs (2) 40 Alien Tech Used (0) 0 Bonus (7) 7 TOTAL SCORE: 1406 Bonus ------- Follower Combat Kills 7 Cogmind --------- Core Integrity 0/250 Matter 300/300 Energy 96/100 System Corruption 0% Temperature Cool (8) Movement Treading (160) Location -10/Subcaves Parts ------- > --- POWER (1) -------- (None) > --- PROPULSION (2) --- Light Treads Light Treads > --- UTILITY (2) ------ Small Storage Unit Seismic Detector > --- WEAPON (2) ------- Assault Rifle Mini Grenade Launcher > --- INVENTORY (8) ---- Ion Engine Light Nuclear Core Structural Scanner Seismic Detector Launcher Guidance Computer Improved Light Armor Plating Hammer Peak State ------------ > --- POWER ------------ Ion Engine > --- PROPULSION ------- Aluminum Leg Aluminum Leg > --- UTILITY ---------- Small Storage Unit Seismic Detector > --- WEAPON ----------- Light Cannon Mini Grenade Launcher > --- INVENTORY -------- Ion Engine Light Nuclear Core Light Treads Light Treads Structural Scanner Seismic Detector Assault Rifle Hammer [Rating: 9] Favorites ----------- Power Ion Engine Engine Ion Engine Propulsion Aluminum Leg Treads Light Treads Leg Aluminum Leg Utility Small Storage Unit Device Seismic Detector Storage Small Storage Unit Weapon Light Cannon Energy Gun Medium Laser Ballistic Gun Assault Rifle Ballistic Cannon Light Cannon Launcher Mini Grenade Launcher Build | -11 -10 -10 -10 ------- Run | Yrd Mat Min Sub Slots Evolved . | . . . . Power . | . . . . Propulsion . | . . . . Utility . | . . . . Weapon . | . . . . Parts Attached 19 | 7 6 6 . Power 2 | 1 1 . . Engine 2 | 1 1 . . Core . | . . . . Reactor . | . . . . Propulsion 9 | 2 4 3 . Treads 2 | . . 2 . Leg 7 | 2 4 1 . Wheel . | . . . . Hover . | . . . . Flight . | . . . . Utility 2 | 2 . . . Device 1 | 1 . . . Storage 1 | 1 . . . Processor . | . . . . Hackware . | . . . . Protection . | . . . . Artifact . | . . . . Weapon 6 | 2 1 3 . Energy Gun 1 | 1 . . . Energy Cannon . | . . . . Ballistic Gun 3 | 1 . 2 . Ballistic Cannon 1 | . 1 . . Launcher 1 | . . 1 . Special Weapon . | . . . . Impact Weapon . | . . . . Slashing Weapon . | . . . . Piercing Weapon . | . . . . Special Melee Weapon . | . . . . Unidentified Prototypes . | . . . . Parts Lost 4 | . . 3 1 Power 1 | . . . 1 Propulsion 1 | . . 1 . Utility . | . . . . Weapon 2 | . . 2 . Highest Loss Streak 1 | . . 1 1 To Critical Strikes . | . . . . Average Backups 7 | 4 7 7 7 Power 1 | . 1 1 2 Propulsion 1 | 1 2 . . Utility 2 | . 1 3 4 Weapon 2 | 1 3 1 1 Tool/Special . | . . . . Unused Backups 12 | . 5 . 7 Power 3 | . 1 . 2 Propulsion . | . . . . Utility 5 | . 1 . 4 Weapon 4 | . 3 . 1 Tool/Special . | . . . . Average Slot Usage (%) 99 | . 98 99 99 Engine 13 | . 14 14 13 Treads 10 | . . 17 28 Leg 16 | . 28 10 . Device 14 | . 14 14 14 Storage 14 | . 14 14 14 Energy Gun 6 | . 14 . . Ballistic Gun 7 | . . 13 14 Ballistic Cannon 9 | . 12 8 . Launcher 4 | . . 6 14 Peak Build Rating 9 | 7 8 9 9 Average Rating 7 | 5 6 8 8 On Entrance 5 | . 7 7 9 Avg Prop Armor Cover (%) . | . . . . Naked Turns . | . . . . Heaviest Build 16 | 14 16 16 14 Greatest Support 40 | 20 20 40 40 Greatest Overweight (x) 1 | 1 . 1 . Average Overweight (x) . | . . . . Largest Inventory Capacity 8 | 8 8 8 8 Average Capacity 7 | 7 8 8 8 Most Carried 8 | 7 8 8 7 Average Carried 7 | 4 7 7 7 Final Capacity 8 | 8 8 8 8 Final Carried 8 | 7 8 7 7 Class Distribution -------------------- 99% | Mutant Dominant Class ---------------- Mutant | -10/Materials Mutant | -10/Mines Mutant | -10/Subcaves Resources | -11 -10 -10 -10 ----------- Run | Yrd Mat Min Sub Matter Collected 793 | 273 226 283 11 Remotely . | . . . . Salvage Created 803 | 67 460 252 24 Parts 50 | 9 25 13 3 Haulers Intercepted . | . . . . Recyclers Shooed 3 | 1 2 . . Parts Field Recycled . | . . . . Retrieved Matter . | . . . . Parts Self-Destructed 5 | . . . 5 Prevented . | . . . . Parts Restored . | . . . . Kills | -11 -10 -10 -10 ------- Run | Yrd Mat Min Sub Combat Hostiles Destroyed 31 | . 11 18 2 Guns 7 | . 3 3 1 Cannons 14 | . 8 6 . AOE 10 | . . 9 1 Classes Destroyed 8 | 1 4 3 . Worker 1 | . . 1 . Builder 1 | . . 1 . Tunneler 3 | 3 . . . Recycler 3 | . 2 1 . Watcher 1 | . 1 . . Swarmer 8 | . 3 3 2 Grunt 12 | . 8 4 . Assembled 11 | . . 11 . Best Kill Streak 9 | 2 6 9 2 Combat Bots Only 9 | . 4 9 2 Max Kills in Single Turn 4 | 1 1 4 1 Gunslinging . | . . . . Exploded 4 | . . 4 1 Melee . | . . . . Uniques/NPCs Destroyed . | . . . . Combat | -11 -10 -10 -10 -------- Run | Yrd Mat Min Sub Hostile Shots Fired 160 | . 54 57 49 Missed 52 | . 16 15 21 Hits 108 | . 38 42 28 Projectile 108 | . 38 42 28 AOE 1 | . . 1 . Critical Strikes 1 | . 1 . . Damage Taken 1144 | . 399 565 180 Core 251 | . 118 103 30 Absorbed by Shields . | . . . . Regen/Repaired (Parts) 59 | . 59 . . Core Remaining (%) 100 | 100 . . . Volleys Fired 91 | 9 50 30 2 Largest 2 | 2 2 2 2 Hottest 80 | 70 80 80 50 Shots Fired 161 | 18 89 51 3 Gun 88 | 18 51 17 2 Cannon 66 | . 38 28 . Launcher 7 | . . 6 1 Special . | . . . . Kinetic 94 | 9 39 44 2 Thermal 60 | 9 50 1 . Explosive 7 | . . 6 1 Electromagnetic . | . . . . Robot Hit Streak 9 | 5 9 9 1 Robot Miss Streak 7 | 2 7 2 2 Penetration Max . | . . . . Secondary Targets . | . . . . Shots Hit Robots 93 | 10 53 29 1 Core Hits 54 | 5 21 26 2 Critical Kills . | . . . . Critical Parts Destroyed . | . . . . Critical Strikes 8 | . 8 . . Burn 3 | . 3 . . Blast 5 | . 5 . . Melee Attacks . | . . . . Impact . | . . . . Slashing . | . . . . Piercing . | . . . . Sneak Attacks . | . . . . Combat Hostiles . | . . . . Follow-up Attacks . | . . . . Damage Inflicted 2026 | 117 839 995 75 Guns 640 | 117 353 155 15 Cannons 734 | . 466 268 . Explosions 620 | . . 560 60 Melee . | . . . . Ramming 32 | . 20 12 . Kinetic 934 | 30 466 423 15 Thermal 440 | 87 353 . . Explosive 620 | . . 560 60 Electromagnetic . | . . . . Impact . | . . . . Slashing . | . . . . Piercing . | . . . . Highest Corruption . | . . . . Average Corruption . | . . . . Corruption Purged . | . . . . Corruption Blocked . | . . . . Overload Shots . | . . . . Overflow Damage 25 | . . 25 . Projectiles 16 | . . 16 . Explosions 9 | . . 9 . Melee . | . . . . Knockbacks 8 | . 6 2 . Impact 1 | . . 1 . Kinetic 7 | . 6 1 . Secondary . | . . . . Self-Inflicted Damage . | . . . . Shots . | . . . . Rammed 2 | . . 2 . Targets Rammed 8 | . 3 5 . Kicked 4 | . 3 1 . Crushed 2 | . . 2 . Highest Temperature 352 | 70 352 44 . Average Temperature 88 | 29 107 29 . Received Heat Transfer 354 | . 147 111 96 Effects 3 | . 3 . . Interference 3 | . 3 . . Siege Activations . | . . . . Martial Activations . | . . . . Shielding Activations . | . . . . Robots Disrupted . | . . . . Combat Hostiles . | . . . . Robots Corrupted . | . . . . Combat Hostiles . | . . . . Parts Fried . | . . . . Impact Corruptions . | . . . . Robots Melted . | . . . . Combat Hostiles . | . . . . Parts Melted 4 | 1 3 . . Heat Transferred 1517 | 259 1258 . . Parts Sabotaged . | . . . . Parts Stolen . | . . . . Parts Stripped . | . . . . Power Chain Reactions . | . . . . Alert | -11 -10 -10 -10 ------- Run | Yrd Mat Min Sub Maximum Alert Level . | . . . . Low Security (%) 100 | 100 100 100 . Level 1 . | . . . . Level 2 . | . . . . Level 3 . | . . . . Level 4 . | . . . . Level 5 . | . . . . High Security . | . . . . Max Security . | . . . . Peak Influence 115 | 5 115 108 . Initial 28 | . . 28 . Average 23 | 1 31 17 . Influence Increases 759 | 15 392 231 121 Destroy 0b10 Robot/C 420 | . 220 140 60 Destroy 0b10 Robot/NC 45 | 15 15 15 . Destroy Leader 82 | . 52 30 . Allied During Kill 1 | . . . 1 Successful Hack 29 | . 29 . . Destroy Structure 47 | . 1 46 . Lose Combat Pursuer 135 | . 75 . 60 Influence Decreases 708 | 15 319 304 70 Entered New Map 45 | . . 45 . Time Decay 534 | 15 277 232 10 Lost Part 37 | . . 27 10 Lost Ally 50 | . . . 50 Purge Threat 42 | . 42 . . Squads Dispatched 1 | . 1 . . Investigation . | . . . . Extermination . | . . . . Reinforcement 1 | . 1 . . Assault . | . . . . Garrison . | . . . . Intercept . | . . . . Searches Triggered . | . . . . Construction Impeded . | . . . . Haulers Reinforced . | . . . . Active Scanning Responses . | . . . . Cargo Convoy Interrupts . | . . . . Stealth | -11 -10 -10 -10 --------- Run | Yrd Mat Min Sub Distress Signals 2 | . 1 1 . Communications Jammed . | . . . . Distress Signals . | . . . . Times Spotted 50 | . 24 20 6 Peak Tracking Total 9 | . 3 9 6 Tactical Retreats 7 | . 4 1 2 Traps | -11 -10 -10 -10 ------- Run | Yrd Mat Min Sub Traps Triggered . | . . . . Indirectly . | . . . . Trap Hack Attempts . | . . . . Triggered . | . . . . Disarmed . | . . . . Reprogrammed . | . . . . Reused . | . . . . Traps Extracted . | . . . . Installed . | . . . . Triggered . | . . . . Machines | -11 -10 -10 -10 ---------- Run | Yrd Mat Min Sub Machines Disabled . | . . . . Max in Single Turn . | . . . . Machines Repaired . | . . . . Machines Dismantled . | . . . . Machines Sabotaged . | . . . . Overloaded Fab Kills . | . . . . Hacking | -11 -10 -10 -10 --------- Run | Yrd Mat Min Sub Machines Accessed 10 | . 9 1 . Terminals 8 | . 7 1 . Fabricators . | . . . . Repair Stations 1 | . 1 . . Recycling Units 1 | . 1 . . Scanalyzers . | . . . . Garrison Access . | . . . . Total Hacks 23 | . 21 2 . Successful 11 | . 11 . . Failed 12 | . 10 2 . Catastrophic 2 | . 1 1 . Database Lockouts . | . . . . Manual 2 | . 2 . . Terminals 20 | . 18 2 . Fabricators . | . . . . Repair Stations 2 | . 2 . . Recycling Units 1 | . 1 . . Scanalyzers . | . . . . Garrison Access . | . . . . Terminal Hacks 8 | . 8 . . Prototype ID Bank 1 | . 1 . . Branch Access Points 1 | . 1 . . Terminal Index 1 | . 1 . . Unreport Threat 1 | . 1 . . Locate Traps 1 | . 1 . . Recall Investigation 1 | . 1 . . Registered Components 1 | . 1 . . Registered Prototypes 1 | . 1 . . Fabricator Hacks . | . . . . Repair Station Hacks 2 | . 2 . . Scan Component 1 | . 1 . . Repair 1 | . 1 . . Recycling Unit Hacks 1 | . 1 . . Retrieve Components 1 | . 1 . . Scanalyzer . | . . . . Garrison Access Hacks . | . . . . Unauthorized Hacks . | . . . . Terminals . | . . . . Fabricators . | . . . . Repair Stations . | . . . . Recycling Units . | . . . . Scanalyzers . | . . . . Garrison Access . | . . . . Data Cores Recovered . | . . . . Used . | . . . . Hacking Detections 8 | . 7 1 . Full Trace Events 1 | . 1 . . Feedback Events . | . . . . Feedback Blocked . | . . . . Robot Schematics Acquired . | . . . . Robots Built . | . . . . Authchips . | . . . . Time . | . . . . Total Robot Build Rating . | . . . . Part Schematics Acquired . | . . . . Parts Built . | . . . . Authchips . | . . . . Time . | . . . . Total Part Build Rating . | . . . . Part Studies Acquired . | . . . . Parts Repaired 1 | . 1 . . Time 26 | . 26 . . Parts Recycled . | . . . . Recycled Matter . | . . . . Retrieved Matter . | . . . . Retrieved Components 7 | . 7 . . Parts Scanalyzed . | . . . . Part Schematics Acquired . | . . . . Parts Damaged . | . . . . Bothacking | -11 -10 -10 -10 ------------ Run | Yrd Mat Min Sub Used RIF Installer . | . . . . Robots Hacked . | . . . . Non-combat . | . . . . Combat . | . . . . Robot Hacks Applied . | . . . . Relay Couplers Released . | . . . . Fabnet Peak Effective % . | . . . . Robots Rewired . | . . . . Allies Hacked . | . . . . Hacks Repelled . | . . . . Allies | -11 -10 -10 -10 -------- Run | Yrd Mat Min Sub Total Allies 3 | . . 3 . Largest Group 3 | . . 3 3 Highest-Rated Group 40 | . . 40 40 Highest-Rated Ally 16 | . . 16 16 Total Orders . | . . . . Ally Attacks 9 | . . . 9 Total Damage 58 | . . . 58 Kills 1 | . . . 1 Allies Corrupted . | . . . . Allies Melted . | . . . . Intel | -11 -10 -10 -10 ------- Run | Yrd Mat Min Sub Active Infowar (turns) 2911 | 58 1265 1246 342 Seismic 2911 | 58 1265 1246 342 Robot Analysis Total . | . . . . Derelict Logs Recovered 3 | . . 2 1 Drone Launches . | . . . . Drone Recoveries . | . . . . Exploration | -11 -10 -10 -10 ------------- Run | Yrd Mat Min Sub Turns Passed 3022 | 131 1303 1246 342 Spaces Moved 1962 | 67 914 774 207 Core 5 | 5 . . . Treads 661 | . . 454 207 Legs 1296 | 62 914 320 . Wheels . | . . . . Hover . | . . . . Flight . | . . . . Fastest Speed 50 | 50 120 120 160 Average Speed 133 | 118 120 144 160 Slowest Speed 190 | 190 120 190 160 Overloaded Moves . | . . . . Propulsion Burnouts . | . . . . Robots Hopped . | . . . . Potential Cave-ins . | . . . . Cave-ins Triggered . | . . . . Exploration Rate (%) 50 | 4 95 95 9 Regions Visited 3 Branch Regions 2 Pre-discovered Areas 2 | . . 1 1 Known Exits Taken 1 | . 1 . . Unknown Exits Taken 2 | 1 . 1 . Scrap Searched 1 | . . 1 . Spaces Dug . | . . . . Terrain Destroyed 71 | . . 63 8 Melee . | . . . . Projectile 2 | . . 2 . AOE 69 | . . 61 8 Terrain Rammed . | . . . . Walls Destroyed . | . . . . Machines Disabled . | . . . . Actions | -11 -10 -10 -10 --------- Run | Yrd Mat Min Sub Total 2199 | 98 1035 850 216 Wait 88 | 9 44 28 7 Move 1959 | 66 913 773 207 Hop . | . . . . Pick Up 17 | 7 7 3 . Fast Attach 10 | 7 2 1 . Attach 3 | . . 3 . Detach . | . . . . Swap 9 | . 5 4 . Drop 14 | . 11 3 . Fire 91 | 9 50 30 2 Melee . | . . . . Ram . | . . . . Kick 4 | . 3 1 . Crush 4 | . . 4 . Escape Stasis . | . . . . Rewire . | . . . . Trap . | . . . . Miscellaneous . | . . . . Route ------- -11/Scrapyard -10/Materials (discovered 5 exits: [*Mat x3] / *Min x2) -10/Mines (discovered 4 exits: [*Mat x2] / [*Exi] / [*Sub]) -10/Subcaves History --------- Turn | Location | Event 5 | -11/Scrapyard | Discovered new exit (range 15) 132 | -11/Scrapyard | Entered Materials 295 | -10/Materials | Identified exit to Mines 309 | -10/Materials | Build established: Mutant 610 | -10/Materials | Discovered new exit (range 5) 929 | -10/Materials | Repaired Lgt. Cannon? 1177 | -10/Materials | Discovered new exit (range 4) 1321 | -10/Materials | Discovered new exit (range 15) 1435 | -10/Materials | Entered Mines 1437 | -10/Mines | Core integrity fell below 50% 1470 | -10/Mines | Met a Derelict bent on vengeance 1681 | -10/Mines | Learned location of 1 exit from Materials 1702 | -10/Mines | Learned location of Mines (-9) 1721 | -10/Mines | Discovered new exit (range 15) 1802 | -10/Mines | Assembled infested the area 1807 | -10/Mines | Assisted by a Guerilla fighting off Assembled 1871 | -10/Mines | Core integrity fell below 20% 1905 | -10/Mines | Destroyed 9 combat bots 2211 | -10/Mines | Assisted by bots powering up and referring to "LRC-V3" 2542 | -10/Mines | Deemed a non-threat by the Exiles lab entrance 2544 | -10/Mines | Discovered new exit (range 5) 2592 | -10/Mines | Discovered new exit (range 4) 2670 | -10/Mines | Discovered new exit (range 5) 2681 | -10/Mines | Entered Subcaves 2681 | -10/Subcaves | Accompanied by 3 allies 2714 | -10/Subcaves | Learned location of Zion (-7) 2714 | -10/Subcaves | Met a Zionite searching for "candidates" 2828 | -10/Subcaves | Shifting Twisted Machinery released Battle Rifle 2828 | -10/Subcaves | Shifting Twisted Machinery released Sub. Beam Cannon 2829 | -10/Subcaves | Learned location of 1 exit from Materials 3023 | -10/Subcaves | Destroyed by Autobeam Turret with Autobeam Last Messages --------------- might I suggest a trip to Zion?" World map updated: -7/Zion. Battle Rifle falls loose from the Twisted Machinery. Sub. Beam Cannon falls loose from the Twisted Machinery. 02829_ Acquired derelict log, extracted data. Data stored: Materials exits (x1). 02995_ Trooper 1a destroyed. 03000_ Trooper 1b destroyed. 03006_ Mercenary 1a destroyed. 03007_ Subatomizers dissect the Aluminum Leg. 03007_ S-10 Pest destroyed. 03012_ Lgt. Ion Engine fries itself beyond repair. 03017_ Ion Engine destroyed. 03018_ Subatomizers dissect the Flight Unit. 03018_ Acquired 11 matter. 03021_ Lgt. Assault Rifle fries itself beyond repair. Map ----- +----------------------------------------------------+ | ### #### #?????????????????????????? | | ## #??????????????????????????? | | ## ## ##########?????????????????? | | ### #### ## # # #?????????????????? | | #?# #?## #??????????????????? | | ### ##?# % ##?????????????????? | | ## #??# ### # #?????????????????? | | ##??# #?### %##?????????????????? | | ## ###???## ##??## #?????????????????? | | #### ##??????## ###??# % #?????????????????? | | ???####????????## ##### ##?????????????????? | | ????????????????## % ##?????????????????? | | ?????????????????## #?????????????????? | | ??????????????????# ##?????????????????? | | ?????????????????# ## #??????????????????? | | ????????????????# # % #??????????????????? | | ????????????????### #### #z #??????????????????? | | ??????????????????###### #??????????????????? | | ???????????????????# # #??????????????????? | | ???????????????????# # # ##??????????????????? | | ???????????????????## ##??????????????????? | | ????????????????????## ! !#####??????????????? | | ?????????????????????## =%[%[ #### ???????? | | ??????????????????????### *=[% [% "??????? | | ?????????????????# ### % =% ??????? | | ?????????????????# @ % "??????? | | ?????????????????# ## ##### ???????? | | ????????????????# #?######???????????????? | | ????????????? ??????????????????????? | | ??????????? ### ??????????????????????? | | ???????????? ### ??## ??????????????????????? | | ????????????????### ?????#??????????????????????? | | ??????????????????## ????????????????????????????? | | ???????????????????#?????????????????????????????? | | ?????????????????????????????????????????????????? | | ?????????????????????????????????????????????????? | | ?????????????????????????????????????????????????? | | ?????????????????????????????????????????????????? | | ?????????????????????????????????????????????????? | | ?????????????????????????????????????????????????? | | ?????????????????????????????????????????????????? | | ?????????????????????????????????????????????????? | | ?????????????????????????????????????????????????? | | ?????????????????????????????????????????????????? | | ?????????????????????????????????????????????????? | | ?????????????????????????????????????????????????? | | ?????????????????????????????????????????????????? | | ?????????????????????????????????????????????????? | | ?????????????????????????????????????????????????? | | ?????????????????????????????????????????????????? | +----------------------------------------------------+ Best States ------------- Heat Dissipation 25 Energy Generation 10 Energy Capacity 250 Matter Stores 300 Matter Capacity 300 Sight Range 16 Terrain Scan Density 10 Evasion (%) 55 Recoil Reduction 2 Item Schematics ----------------- None Robot Schematics ------------------ None Fabricated ------------ Nothing Repaired ---------- Lgt. Cannon | 50% | -10/Materials Studied --------- None Alien Tech Used ----------------- None Achievements -------------- I Survived The Infestation Challenges ------------ None Game ------ Seed LaserGreatShooter Manual? 0 Play Time 00:31:52 Cumulative 33.5 hours Start 2025.11.27 @ 09:50:55 End 2025.11.27 @ 19:49:50 Sessions 3 Manual Loads 0 Difficulty Rogue Special Mode None Game No. 32 Rogue 32 Adventurer 0 Explorer 0 Win Type - Total 0 Types 0/0/0/0/0/0/0/0/0/0 Lore% 17 Gallery% 22 Achievement% 20 Wizard Run 0 Options --------- Layout 1 ASCII 0 Keyboard 0 Movement Arrows Keybinds 0 Fullscreen 2 Font 48/Smallcaps Map View 50x35 Zoom Use 0% Tactical HUD 1 Map Filters NONE Filters NONE Steam 1 RUN: d1e41995-803b-47b2-b79e-5c628fb98d0d